{"text_format":"1","workbook":"xlsx","n_sheets":4,"sheets":["Sheet1","Sheet2","Sheet3","Sheet4"],"not_rendered":{"charts":0,"images":0,"macros":0,"external_links":0,"defined_names":20,"comments":0,"pivot_tables":0},"unopened":[],"bounds":{"document_bytes":16777216,"sheet_cells":100000,"rows_first":2000,"rows_last":500,"rows_between":2000,"halvings":0,"cell_chars":16384,"cell_head_chars":4096},"cells_cut":0,"cells_raw":0,"read":"whole","date_system":"1900"}

{"sheet":"Sheet1","index":0,"n_rows":130,"n_cols":23,"rows_kept":130,"cut":false,"hidden":false,"merged":[[0,0,0,10],[9,0,9,10],[8,0,8,10],[7,0,7,10],[17,5,17,10],[16,2,16,4],[10,0,13,10],[3,9,3,10],[2,5,2,6],[2,1,2,3],[1,1,1,3],[17,0,17,2],[15,1,15,4],[14,5,14,7],[16,6,16,10],[4,6,4,10],[16,0,16,1]]}
["USBCHA RESULTS FORM",null,null,null,null,null,null,null,null,null,null,"Notes;",null,null,null,null,null,null,null,"January",1,2016,"Sheep"]
["Check One:","Class:",null,null,null,null,null,null,null,null,null,"if you select cattle or sheep and total to post, total fee will be computed",null,null,null,null,null,null,null,"March",3,2018,"Cattle"]
["Type of Stock",null,null,null,null,null,null,null,null,null,null,null,null,null,null,null,null,null,null,"February",2,2017]
["Sheepdog Trial: Per Entry:",3.5,"=",{"$f":"IF(B3=\"Sheep\",D18*B4,\"\")","v":""},"Cattledog Trial: Per Entry:","Cattledog Trial: Per Entry:",4,"=",{"$f":"IF(B3=\"cattle\",D18*G4,\"\")","v":""},null,null,null,null,null,null,null,null,null,null,"April",4,2019]
["Check one:",null,null,null,null,"email results to:","secretary @usbcha.com",null,null,null,null,null,null,null,null,null,null,null,null,"May",5,2020]
["Make checks payable to USBCHA (Canada results- fees must be in US funds.)",null,null,null,null,null,null,null,null,null,null,null,null,null,null,null,null,null,null,"June",6,2021]
["Mail to: USBCHA, 1556 Harding St, Enumclaw, WA 98022",null,null,null,null,null,null,null,null,null,null,null,null,null,null,null,null,null,null,"July",7,2022]
["Please list trial name as stated on the web site",null,null,null,null,null,null,null,null,null,null,null,null,null,null,null,null,null,null,"August",8,2023]
["http://www.usbcha.com/sheep/sheep.html",null,null,null,null,null,null,null,null,null,null,null,null,null,null,null,null,null,null,"September",9,2024]
["http://www.usbcha.com/cattle/upcoming_trials.html",null,null,null,null,null,null,null,null,null,null,null,null,null,null,null,null,null,null,"October",10,2025]
["List the top 20%(sheep), or 30%(cattle) of handlers/dogs that compete in the trial in order of finish.  To verify the number of dogs running, you may EITHER fill out this form(adding pages as needed) OR attach a run order (or similar list) noting any scratches or dogs running non-compete.  You may use any version of this form(PDF, Word or Excel) or send the information in Excel or other program so long as the requested information is included.  Please do not send scoring breakdowns.",null,null,null,null,null,null,null,null,null,null,null,null,null,null,null,null,null,null,"November",11,2026]
[null,null,null,null,null,null,null,null,null,null,null,null,null,null,null,null,null,null,null,"December",12,2027]
[null,null,null,null,null,null,null,null,null,null,null,null,null,null,null,null,null,null,null,null,13,2028]
[null,null,null,null,null,null,null,null,null,null,null,null,null,null,null,null,null,null,null,null,14,2029]
["Results must be returned within 21 days of the trial.",null,null,null,null,"Date of Trial:",null,null,null,null,null,null,null,null,null,null,null,null,null,null,15,2030]
["Trial Name:",null,null,null,null,null,null,null,null,null,null,null,null,null,null,null,null,null,null,null,16]
["Person in Charge:",null,null,null,null,"Telephone #",null,null,null,null,null,null,null,null,null,null,null,null,null,null,17]
["Total # to Post:",null,null,null,"Email:",null,null,null,null,null,null,null,null,null,null,null,null,null,null,null,18]
[null,null,null,null,null,null,null,null,null,null,null,null,null,null,null,null,null,null,null,null,19]
[null,null,null,null,"HANDLER","DOG",null,null,null,null,null,null,null,null,null,null,null,null,null,null,20]
[null,null,null,{"$f":"IF(E21=\"\",\"\",D20+1)","v":""},null,null,null,null,null,null,null,null,null,null,null,null,null,null,null,null,21]
[null,null,null,{"$f":"IF(E22=\"\",\"\",D21+1)","v":""},null,null,null,null,null,null,null,null,null,null,null,null,null,null,null,null,22]
[null,null,null,"",null,null,null,null,null,null,null,null,null,null,null,null,null,null,null,null,23]
[null,null,null,"",null,null,null,null,null,null,null,null,null,null,null,null,null,null,null,null,24]
[null,null,null,"",null,null,null,null,null,null,null,null,null,null,null,null,null,null,null,null,25]
[null,null,null,"",null,null,null,null,null,null,null,null,null,null,null,null,null,null,null,null,26]
[null,null,null,"",null,null,null,null,null,null,null,null,null,null,null,null,null,null,null,null,27]
[null,null,null,"",null,null,null,null,null,null,null,null,null,null,null,null,null,null,null,null,28]
[null,null,null,"",null,null,null,null,null,null,null,null,null,null,null,null,null,null,null,null,29]
[null,null,null,"",null,null,null,null,null,null,null,null,null,null,null,null,null,null,null,null,30]
[null,null,null,"",null,null,null,null,null,null,null,null,null,null,null,null,null,null,null,null,31]
[null,null,null,""]
[null,null,null,""]
[null,null,null,""]
[null,null,null,""]
[null,null,null,""]
[null,null,null,""]
[null,null,null,""]
[null,null,null,""]
[null,null,null,""]
[null,null,null,""]
[null,null,null,""]
[null,null,null,""]
[null,null,null,""]
[null,null,null,""]
[null,null,null,""]
[null,null,null,""]
[null,null,null,""]
[null,null,null,""]
[null,null,null,""]
[null,null,null,""]
[null,null,null,""]
[null,null,null,""]
[null,null,null,""]
[null,null,null,""]
[null,null,null,""]
[null,null,null,""]
[null,null,null,""]
[null,null,null,""]
[null,null,null,""]
[null,null,null,""]
[null,null,null,""]
[null,null,null,""]
[null,null,null,""]
[null,null,null,""]
[null,null,null,""]
[null,null,null,""]
[null,null,null,""]
[null,null,null,""]
[null,null,null,""]
[null,null,null,""]
[null,null,null,""]
[null,null,null,""]
[null,null,null,""]
[null,null,null,""]
[null,null,null,""]
[null,null,null,""]
[null,null,null,""]
[null,null,null,""]
[null,null,null,""]
[null,null,null,""]
[null,null,null,""]
[null,null,null,""]
[null,null,null,""]
[null,null,null,""]
[null,null,null,{"$f":"IF(E86=\"\",\"\",D85+1)","v":""}]
[null,null,null,""]
[null,null,null,""]
[null,null,null,""]
[null,null,null,""]
[null,null,null,""]
[null,null,null,""]
[null,null,null,""]
[null,null,null,""]
[null,null,null,""]
[null,null,null,""]
[null,null,null,""]
[null,null,null,""]
[null,null,null,""]
[null,null,null,""]
[null,null,null,""]
[null,null,null,""]
[null,null,null,""]
[null,null,null,""]
[null,null,null,""]
[null,null,null,""]
[null,null,null,""]
[null,null,null,""]
[null,null,null,""]
[null,null,null,""]
[null,null,null,""]
[null,null,null,""]
[null,null,null,""]
[null,null,null,""]
[null,null,null,""]
[null,null,null,""]
[null,null,null,""]
[null,null,null,""]
[null,null,null,""]
[null,null,null,""]
[null,null,null,""]
[null,null,null,""]
[null,null,null,""]
[null,null,null,""]
[null,null,null,""]
[null,null,null,""]
[null,null,null,""]
[null,null,null,""]
[null,null,null,""]
[null,null,null,""]

{"sheet":"Sheet2","index":1,"n_rows":130,"n_cols":23,"rows_kept":130,"cut":false,"hidden":false,"merged":[[15,1,15,4],[0,0,0,10],[1,1,1,3],[2,1,2,3],[2,5,2,6],[3,9,3,10],[4,6,4,10],[7,0,7,10],[8,0,8,10],[9,0,9,10],[10,0,13,10],[14,5,14,7],[16,0,16,1],[16,2,16,4],[16,6,16,10],[17,0,17,2],[17,5,17,10]]}
["USBCHA RESULTS FORM",null,null,null,null,null,null,null,null,null,null,"Notes;",null,null,null,null,null,null,null,"January",1,2016,"Sheep"]
["Check One:","Class:",null,null,null,null,null,null,null,null,null,"if you select cattle or sheep and total to post, total fee will be computed",null,null,null,null,null,null,null,"March",3,2018,"Cattle"]
["Type of Stock",null,null,null,null,null,null,null,null,null,null,null,null,null,null,null,null,null,null,"February",2,2017]
["Sheepdog Trial: Per Entry:",3.5,"=",{"$f":"IF(B3=\"Sheep\",D18*B4,\"\")","v":""},"Cattledog Trial: Per Entry:","Cattledog Trial: Per Entry:",4,"=",{"$f":"IF(B3=\"cattle\",D18*G4,\"\")","v":""},null,null,null,null,null,null,null,null,null,null,"April",4,2019]
["Check one:",null,null,null,null,"email results to:","secretary @usbcha.com",null,null,null,null,null,null,null,null,null,null,null,null,"May",5,2020]
["Make checks payable to USBCHA (Canada results- fees must be in US funds.)",null,null,null,null,null,null,null,null,null,null,null,null,null,null,null,null,null,null,"June",6,2021]
["Mail to: USBCHA, 1556 Harding St, Enumclaw, WA 98022",null,null,null,null,null,null,null,null,null,null,null,null,null,null,null,null,null,null,"July",7,2022]
["Please list trial name as stated on the web site",null,null,null,null,null,null,null,null,null,null,null,null,null,null,null,null,null,null,"August",8,2023]
["http://www.usbcha.com/sheep/sheep.html",null,null,null,null,null,null,null,null,null,null,null,null,null,null,null,null,null,null,"September",9,2024]
["http://www.usbcha.com/cattle/upcoming_trials.html",null,null,null,null,null,null,null,null,null,null,null,null,null,null,null,null,null,null,"October",10,2025]
["List the top 20%(sheep), or 30%(cattle) of handlers/dogs that compete in the trial in order of finish.  To verify the number of dogs running, you may EITHER fill out this form(adding pages as needed) OR attach a run order (or similar list) noting any scratches or dogs running non-compete.  You may use any version of this form(PDF, Word or Excel) or send the information in Excel or other program so long as the requested information is included.  Please do not send scoring breakdowns.",null,null,null,null,null,null,null,null,null,null,null,null,null,null,null,null,null,null,"November",11,2026]
[null,null,null,null,null,null,null,null,null,null,null,null,null,null,null,null,null,null,null,"December",12,2027]
[null,null,null,null,null,null,null,null,null,null,null,null,null,null,null,null,null,null,null,null,13,2028]
[null,null,null,null,null,null,null,null,null,null,null,null,null,null,null,null,null,null,null,null,14,2029]
["Results must be returned within 21 days of the trial.",null,null,null,null,"Date of Trial:",null,null,null,null,null,null,null,null,null,null,null,null,null,null,15,2030]
["Trial Name:",null,null,null,null,null,null,null,null,null,null,null,null,null,null,null,null,null,null,null,16]
["Person in Charge:",null,null,null,null,"Telephone #",null,null,null,null,null,null,null,null,null,null,null,null,null,null,17]
["Total # to Post:",null,null,null,"Email:",null,null,null,null,null,null,null,null,null,null,null,null,null,null,null,18]
[null,null,null,null,null,null,null,null,null,null,null,null,null,null,null,null,null,null,null,null,19]
[null,null,null,null,"HANDLER","DOG",null,null,null,null,null,null,null,null,null,null,null,null,null,null,20]
[null,null,null,{"$f":"IF(E21=\"\",\"\",D20+1)","v":""},null,null,null,null,null,null,null,null,null,null,null,null,null,null,null,null,21]
[null,null,null,{"$f":"IF(E22=\"\",\"\",D21+1)","v":""},null,null,null,null,null,null,null,null,null,null,null,null,null,null,null,null,22]
[null,null,null,"",null,null,null,null,null,null,null,null,null,null,null,null,null,null,null,null,23]
[null,null,null,"",null,null,null,null,null,null,null,null,null,null,null,null,null,null,null,null,24]
[null,null,null,"",null,null,null,null,null,null,null,null,null,null,null,null,null,null,null,null,25]
[null,null,null,"",null,null,null,null,null,null,null,null,null,null,null,null,null,null,null,null,26]
[null,null,null,"",null,null,null,null,null,null,null,null,null,null,null,null,null,null,null,null,27]
[null,null,null,"",null,null,null,null,null,null,null,null,null,null,null,null,null,null,null,null,28]
[null,null,null,"",null,null,null,null,null,null,null,null,null,null,null,null,null,null,null,null,29]
[null,null,null,"",null,null,null,null,null,null,null,null,null,null,null,null,null,null,null,null,30]
[null,null,null,"",null,null,null,null,null,null,null,null,null,null,null,null,null,null,null,null,31]
[null,null,null,""]
[null,null,null,""]
[null,null,null,""]
[null,null,null,""]
[null,null,null,""]
[null,null,null,""]
[null,null,null,""]
[null,null,null,""]
[null,null,null,""]
[null,null,null,""]
[null,null,null,""]
[null,null,null,""]
[null,null,null,""]
[null,null,null,""]
[null,null,null,""]
[null,null,null,""]
[null,null,null,""]
[null,null,null,""]
[null,null,null,""]
[null,null,null,""]
[null,null,null,""]
[null,null,null,""]
[null,null,null,""]
[null,null,null,""]
[null,null,null,""]
[null,null,null,""]
[null,null,null,""]
[null,null,null,""]
[null,null,null,""]
[null,null,null,""]
[null,null,null,""]
[null,null,null,""]
[null,null,null,""]
[null,null,null,""]
[null,null,null,""]
[null,null,null,""]
[null,null,null,""]
[null,null,null,""]
[null,null,null,""]
[null,null,null,""]
[null,null,null,""]
[null,null,null,""]
[null,null,null,""]
[null,null,null,""]
[null,null,null,""]
[null,null,null,""]
[null,null,null,""]
[null,null,null,""]
[null,null,null,""]
[null,null,null,""]
[null,null,null,""]
[null,null,null,""]
[null,null,null,""]
[null,null,null,""]
[null,null,null,{"$f":"IF(E86=\"\",\"\",D85+1)","v":""}]
[null,null,null,""]
[null,null,null,""]
[null,null,null,""]
[null,null,null,""]
[null,null,null,""]
[null,null,null,""]
[null,null,null,""]
[null,null,null,""]
[null,null,null,""]
[null,null,null,""]
[null,null,null,""]
[null,null,null,""]
[null,null,null,""]
[null,null,null,""]
[null,null,null,""]
[null,null,null,""]
[null,null,null,""]
[null,null,null,""]
[null,null,null,""]
[null,null,null,""]
[null,null,null,""]
[null,null,null,""]
[null,null,null,""]
[null,null,null,""]
[null,null,null,""]
[null,null,null,""]
[null,null,null,""]
[null,null,null,""]
[null,null,null,""]
[null,null,null,""]
[null,null,null,""]
[null,null,null,""]
[null,null,null,""]
[null,null,null,""]
[null,null,null,""]
[null,null,null,""]
[null,null,null,""]
[null,null,null,""]
[null,null,null,""]
[null,null,null,""]
[null,null,null,""]
[null,null,null,""]
[null,null,null,""]
[null,null,null,""]

{"sheet":"Sheet3","index":2,"n_rows":130,"n_cols":23,"rows_kept":130,"cut":false,"hidden":false,"merged":[[15,1,15,4],[0,0,0,10],[1,1,1,3],[2,1,2,3],[2,5,2,6],[3,9,3,10],[4,6,4,10],[7,0,7,10],[8,0,8,10],[9,0,9,10],[10,0,13,10],[14,5,14,7],[16,0,16,1],[16,2,16,4],[16,6,16,10],[17,0,17,2],[17,5,17,10]]}
["USBCHA RESULTS FORM",null,null,null,null,null,null,null,null,null,null,"Notes;",null,null,null,null,null,null,null,"January",1,2016,"Sheep"]
["Check One:","Class:",null,null,null,null,null,null,null,null,null,"if you select cattle or sheep and total to post, total fee will be computed",null,null,null,null,null,null,null,"March",3,2018,"Cattle"]
["Type of Stock",null,null,null,null,null,null,null,null,null,null,null,null,null,null,null,null,null,null,"February",2,2017]
["Sheepdog Trial: Per Entry:",3.5,"=",{"$f":"IF(B3=\"Sheep\",D18*B4,\"\")","v":""},"Cattledog Trial: Per Entry:","Cattledog Trial: Per Entry:",4,"=",{"$f":"IF(B3=\"cattle\",D18*G4,\"\")","v":""},null,null,null,null,null,null,null,null,null,null,"April",4,2019]
["Check one:",null,null,null,null,"email results to:","secretary @usbcha.com",null,null,null,null,null,null,null,null,null,null,null,null,"May",5,2020]
["Make checks payable to USBCHA (Canada results- fees must be in US funds.)",null,null,null,null,null,null,null,null,null,null,null,null,null,null,null,null,null,null,"June",6,2021]
["Mail to: USBCHA, 1556 Harding St, Enumclaw, WA 98022",null,null,null,null,null,null,null,null,null,null,null,null,null,null,null,null,null,null,"July",7,2022]
["Please list trial name as stated on the web site",null,null,null,null,null,null,null,null,null,null,null,null,null,null,null,null,null,null,"August",8,2023]
["http://www.usbcha.com/sheep/sheep.html",null,null,null,null,null,null,null,null,null,null,null,null,null,null,null,null,null,null,"September",9,2024]
["http://www.usbcha.com/cattle/upcoming_trials.html",null,null,null,null,null,null,null,null,null,null,null,null,null,null,null,null,null,null,"October",10,2025]
["List the top 20%(sheep), or 30%(cattle) of handlers/dogs that compete in the trial in order of finish.  To verify the number of dogs running, you may EITHER fill out this form(adding pages as needed) OR attach a run order (or similar list) noting any scratches or dogs running non-compete.  You may use any version of this form(PDF, Word or Excel) or send the information in Excel or other program so long as the requested information is included.  Please do not send scoring breakdowns.",null,null,null,null,null,null,null,null,null,null,null,null,null,null,null,null,null,null,"November",11,2026]
[null,null,null,null,null,null,null,null,null,null,null,null,null,null,null,null,null,null,null,"December",12,2027]
[null,null,null,null,null,null,null,null,null,null,null,null,null,null,null,null,null,null,null,null,13,2028]
[null,null,null,null,null,null,null,null,null,null,null,null,null,null,null,null,null,null,null,null,14,2029]
["Results must be returned within 21 days of the trial.",null,null,null,null,"Date of Trial:",null,null,null,null,null,null,null,null,null,null,null,null,null,null,15,2030]
["Trial Name:",null,null,null,null,null,null,null,null,null,null,null,null,null,null,null,null,null,null,null,16]
["Person in Charge:",null,null,null,null,"Telephone #",null,null,null,null,null,null,null,null,null,null,null,null,null,null,17]
["Total # to Post:",null,null,null,"Email:",null,null,null,null,null,null,null,null,null,null,null,null,null,null,null,18]
[null,null,null,null,null,null,null,null,null,null,null,null,null,null,null,null,null,null,null,null,19]
[null,null,null,null,"HANDLER","DOG",null,null,null,null,null,null,null,null,null,null,null,null,null,null,20]
[null,null,null,{"$f":"IF(E21=\"\",\"\",D20+1)","v":""},null,null,null,null,null,null,null,null,null,null,null,null,null,null,null,null,21]
[null,null,null,{"$f":"IF(E22=\"\",\"\",D21+1)","v":""},null,null,null,null,null,null,null,null,null,null,null,null,null,null,null,null,22]
[null,null,null,"",null,null,null,null,null,null,null,null,null,null,null,null,null,null,null,null,23]
[null,null,null,"",null,null,null,null,null,null,null,null,null,null,null,null,null,null,null,null,24]
[null,null,null,"",null,null,null,null,null,null,null,null,null,null,null,null,null,null,null,null,25]
[null,null,null,"",null,null,null,null,null,null,null,null,null,null,null,null,null,null,null,null,26]
[null,null,null,"",null,null,null,null,null,null,null,null,null,null,null,null,null,null,null,null,27]
[null,null,null,"",null,null,null,null,null,null,null,null,null,null,null,null,null,null,null,null,28]
[null,null,null,"",null,null,null,null,null,null,null,null,null,null,null,null,null,null,null,null,29]
[null,null,null,"",null,null,null,null,null,null,null,null,null,null,null,null,null,null,null,null,30]
[null,null,null,"",null,null,null,null,null,null,null,null,null,null,null,null,null,null,null,null,31]
[null,null,null,""]
[null,null,null,""]
[null,null,null,""]
[null,null,null,""]
[null,null,null,""]
[null,null,null,""]
[null,null,null,""]
[null,null,null,""]
[null,null,null,""]
[null,null,null,""]
[null,null,null,""]
[null,null,null,""]
[null,null,null,""]
[null,null,null,""]
[null,null,null,""]
[null,null,null,""]
[null,null,null,""]
[null,null,null,""]
[null,null,null,""]
[null,null,null,""]
[null,null,null,""]
[null,null,null,""]
[null,null,null,""]
[null,null,null,""]
[null,null,null,""]
[null,null,null,""]
[null,null,null,""]
[null,null,null,""]
[null,null,null,""]
[null,null,null,""]
[null,null,null,""]
[null,null,null,""]
[null,null,null,""]
[null,null,null,""]
[null,null,null,""]
[null,null,null,""]
[null,null,null,""]
[null,null,null,""]
[null,null,null,""]
[null,null,null,""]
[null,null,null,""]
[null,null,null,""]
[null,null,null,""]
[null,null,null,""]
[null,null,null,""]
[null,null,null,""]
[null,null,null,""]
[null,null,null,""]
[null,null,null,""]
[null,null,null,""]
[null,null,null,""]
[null,null,null,""]
[null,null,null,""]
[null,null,null,""]
[null,null,null,{"$f":"IF(E86=\"\",\"\",D85+1)","v":""}]
[null,null,null,""]
[null,null,null,""]
[null,null,null,""]
[null,null,null,""]
[null,null,null,""]
[null,null,null,""]
[null,null,null,""]
[null,null,null,""]
[null,null,null,""]
[null,null,null,""]
[null,null,null,""]
[null,null,null,""]
[null,null,null,""]
[null,null,null,""]
[null,null,null,""]
[null,null,null,""]
[null,null,null,""]
[null,null,null,""]
[null,null,null,""]
[null,null,null,""]
[null,null,null,""]
[null,null,null,""]
[null,null,null,""]
[null,null,null,""]
[null,null,null,""]
[null,null,null,""]
[null,null,null,""]
[null,null,null,""]
[null,null,null,""]
[null,null,null,""]
[null,null,null,""]
[null,null,null,""]
[null,null,null,""]
[null,null,null,""]
[null,null,null,""]
[null,null,null,""]
[null,null,null,""]
[null,null,null,""]
[null,null,null,""]
[null,null,null,""]
[null,null,null,""]
[null,null,null,""]
[null,null,null,""]
[null,null,null,""]

{"sheet":"Sheet4","index":3,"n_rows":130,"n_cols":23,"rows_kept":130,"cut":false,"hidden":false,"merged":[[15,1,15,4],[0,0,0,10],[1,1,1,3],[2,1,2,3],[2,5,2,6],[3,9,3,10],[4,6,4,10],[7,0,7,10],[8,0,8,10],[9,0,9,10],[10,0,13,10],[14,5,14,7],[16,0,16,1],[16,2,16,4],[16,6,16,10],[17,0,17,2],[17,5,17,10]]}
["USBCHA RESULTS FORM",null,null,null,null,null,null,null,null,null,null,"Notes;",null,null,null,null,null,null,null,"January",1,2016,"Sheep"]
["Check One:","Class:",null,null,null,null,null,null,null,null,null,"if you select cattle or sheep and total to post, total fee will be computed",null,null,null,null,null,null,null,"March",3,2018,"Cattle"]
["Type of Stock",null,null,null,null,null,null,null,null,null,null,null,null,null,null,null,null,null,null,"February",2,2017]
["Sheepdog Trial: Per Entry:",3.5,"=",{"$f":"IF(B3=\"Sheep\",D18*B4,\"\")","v":""},"Cattledog Trial: Per Entry:","Cattledog Trial: Per Entry:",4,"=",{"$f":"IF(B3=\"cattle\",D18*G4,\"\")","v":""},null,null,null,null,null,null,null,null,null,null,"April",4,2019]
["Check one:",null,null,null,null,"email results to:","secretary @usbcha.com",null,null,null,null,null,null,null,null,null,null,null,null,"May",5,2020]
["Make checks payable to USBCHA (Canada results- fees must be in US funds.)",null,null,null,null,null,null,null,null,null,null,null,null,null,null,null,null,null,null,"June",6,2021]
["Mail to: USBCHA, 1556 Harding St, Enumclaw, WA 98022",null,null,null,null,null,null,null,null,null,null,null,null,null,null,null,null,null,null,"July",7,2022]
["Please list trial name as stated on the web site",null,null,null,null,null,null,null,null,null,null,null,null,null,null,null,null,null,null,"August",8,2023]
["http://www.usbcha.com/sheep/sheep.html",null,null,null,null,null,null,null,null,null,null,null,null,null,null,null,null,null,null,"September",9,2024]
["http://www.usbcha.com/cattle/upcoming_trials.html",null,null,null,null,null,null,null,null,null,null,null,null,null,null,null,null,null,null,"October",10,2025]
["List the top 20%(sheep), or 30%(cattle) of handlers/dogs that compete in the trial in order of finish.  To verify the number of dogs running, you may EITHER fill out this form(adding pages as needed) OR attach a run order (or similar list) noting any scratches or dogs running non-compete.  You may use any version of this form(PDF, Word or Excel) or send the information in Excel or other program so long as the requested information is included.  Please do not send scoring breakdowns.",null,null,null,null,null,null,null,null,null,null,null,null,null,null,null,null,null,null,"November",11,2026]
[null,null,null,null,null,null,null,null,null,null,null,null,null,null,null,null,null,null,null,"December",12,2027]
[null,null,null,null,null,null,null,null,null,null,null,null,null,null,null,null,null,null,null,null,13,2028]
[null,null,null,null,null,null,null,null,null,null,null,null,null,null,null,null,null,null,null,null,14,2029]
["Results must be returned within 21 days of the trial.",null,null,null,null,"Date of Trial:",null,null,null,null,null,null,null,null,null,null,null,null,null,null,15,2030]
["Trial Name:",null,null,null,null,null,null,null,null,null,null,null,null,null,null,null,null,null,null,null,16]
["Person in Charge:",null,null,null,null,"Telephone #",null,null,null,null,null,null,null,null,null,null,null,null,null,null,17]
["Total # to Post:",null,null,null,"Email:",null,null,null,null,null,null,null,null,null,null,null,null,null,null,null,18]
[null,null,null,null,null,null,null,null,null,null,null,null,null,null,null,null,null,null,null,null,19]
[null,null,null,null,"HANDLER","DOG",null,null,null,null,null,null,null,null,null,null,null,null,null,null,20]
[null,null,null,{"$f":"IF(E21=\"\",\"\",D20+1)","v":""},null,null,null,null,null,null,null,null,null,null,null,null,null,null,null,null,21]
[null,null,null,{"$f":"IF(E22=\"\",\"\",D21+1)","v":""},null,null,null,null,null,null,null,null,null,null,null,null,null,null,null,null,22]
[null,null,null,"",null,null,null,null,null,null,null,null,null,null,null,null,null,null,null,null,23]
[null,null,null,"",null,null,null,null,null,null,null,null,null,null,null,null,null,null,null,null,24]
[null,null,null,"",null,null,null,null,null,null,null,null,null,null,null,null,null,null,null,null,25]
[null,null,null,"",null,null,null,null,null,null,null,null,null,null,null,null,null,null,null,null,26]
[null,null,null,"",null,null,null,null,null,null,null,null,null,null,null,null,null,null,null,null,27]
[null,null,null,"",null,null,null,null,null,null,null,null,null,null,null,null,null,null,null,null,28]
[null,null,null,"",null,null,null,null,null,null,null,null,null,null,null,null,null,null,null,null,29]
[null,null,null,"",null,null,null,null,null,null,null,null,null,null,null,null,null,null,null,null,30]
[null,null,null,"",null,null,null,null,null,null,null,null,null,null,null,null,null,null,null,null,31]
[null,null,null,""]
[null,null,null,""]
[null,null,null,""]
[null,null,null,""]
[null,null,null,""]
[null,null,null,""]
[null,null,null,""]
[null,null,null,""]
[null,null,null,""]
[null,null,null,""]
[null,null,null,""]
[null,null,null,""]
[null,null,null,""]
[null,null,null,""]
[null,null,null,""]
[null,null,null,""]
[null,null,null,""]
[null,null,null,""]
[null,null,null,""]
[null,null,null,""]
[null,null,null,""]
[null,null,null,""]
[null,null,null,""]
[null,null,null,""]
[null,null,null,""]
[null,null,null,""]
[null,null,null,""]
[null,null,null,""]
[null,null,null,""]
[null,null,null,""]
[null,null,null,""]
[null,null,null,""]
[null,null,null,""]
[null,null,null,""]
[null,null,null,""]
[null,null,null,""]
[null,null,null,""]
[null,null,null,""]
[null,null,null,""]
[null,null,null,""]
[null,null,null,""]
[null,null,null,""]
[null,null,null,""]
[null,null,null,""]
[null,null,null,""]
[null,null,null,""]
[null,null,null,""]
[null,null,null,""]
[null,null,null,""]
[null,null,null,""]
[null,null,null,""]
[null,null,null,""]
[null,null,null,""]
[null,null,null,""]
[null,null,null,{"$f":"IF(E86=\"\",\"\",D85+1)","v":""}]
[null,null,null,""]
[null,null,null,""]
[null,null,null,""]
[null,null,null,""]
[null,null,null,""]
[null,null,null,""]
[null,null,null,""]
[null,null,null,""]
[null,null,null,""]
[null,null,null,""]
[null,null,null,""]
[null,null,null,""]
[null,null,null,""]
[null,null,null,""]
[null,null,null,""]
[null,null,null,""]
[null,null,null,""]
[null,null,null,""]
[null,null,null,""]
[null,null,null,""]
[null,null,null,""]
[null,null,null,""]
[null,null,null,""]
[null,null,null,""]
[null,null,null,""]
[null,null,null,""]
[null,null,null,""]
[null,null,null,""]
[null,null,null,""]
[null,null,null,""]
[null,null,null,""]
[null,null,null,""]
[null,null,null,""]
[null,null,null,""]
[null,null,null,""]
[null,null,null,""]
[null,null,null,""]
[null,null,null,""]
[null,null,null,""]
[null,null,null,""]
[null,null,null,""]
[null,null,null,""]
[null,null,null,""]
[null,null,null,""]